Cogmind - Beta 13 @@@ ROGUE MODE // 2024.04.04 @ 21:34:01 Player: Skysub Result: Self-destructed Performance ------------- Evolutions (2) 1000 Regions Visited (3) 600 Robots Destroyed (29) 145 Value Destroyed (589) 589 Prototype IDs (5) 100 Alien Tech Used (0) 0 Bonus (0) 0 TOTAL SCORE: 2434 Bonus ------- None Cogmind --------- Core Integrity 442/550 Matter 300/300 Energy 100/100 System Corruption 0% Temperature Cool (1) Movement Flying (45) Location -8/Materials Parts ------- > --- POWER (1) -------- (None) > --- PROPULSION (3) --- Armored Wheel Armored Wheel VTOL Module > --- UTILITY (5) ------ Terrain Scan Processor Improved Terrain Scan Processor Transport Network Coupler Melee Analysis Suite > --- WEAPON (2) ------- Heavy Flail > --- INVENTORY (5) ---- Ion Engine Light Ion Engine ECM Suite Peak State ------------ > --- POWER ------------ Ion Engine > --- PROPULSION ------- Armored Wheel Armored Wheel Cesium-ion Thruster > --- UTILITY ---------- Improved Terrain Scanner Terrain Scan Processor Improved Terrain Scan Processor Transport Network Coupler Melee Analysis Suite > --- WEAPON ----------- EM Shotgun Improved EM Shotgun > --- INVENTORY -------- Light Ion Engine VTOL Module ECM Suite EM Shotgun Maul [Rating: 25] Favorites ----------- Power Ion Engine Engine Ion Engine Power Core Light Nuclear Core Propulsion Armored Wheel Leg Aluminum Leg Wheel Armored Wheel Flight Unit Cesium-ion Thruster Utility Improved Terrain Scanner Device Improved Terrain Scanner Processor Terrain Scan Processor Protection Reactive Plating Weapon EM Shotgun Energy Gun EM Shotgun Ballistic Gun Assault Rifle Impact Weapon Maul Special Melee Weapon Datajack Build | -11 -10 -9 -8 ------- Run | Yrd Mat Mat Mat Slots Evolved 4 | . . 2 2 Power . | . . . . Propulsion 1 | . . . 1 Utility 3 | . . 2 1 Weapon . | . . . . Parts Attached 43 | 9 14 14 6 Power 5 | 1 2 2 . Engine 4 | 1 1 2 . Core 1 | . 1 . . Reactor . | . . . . Propulsion 8 | 4 2 . 2 Treads . | . . . . Leg 2 | 2 . . . Wheel 4 | 2 2 . . Hover . | . . . . Flight 2 | . . . 2 Utility 17 | 2 7 6 2 Device 12 | 2 6 4 . Storage . | . . . . Processor 4 | . 1 1 2 Hackware . | . . . . Protection 1 | . . 1 . Artifact . | . . . . Weapon 13 | 2 3 6 2 Energy Gun 6 | . 2 3 1 Energy Cannon . | . . . . Ballistic Gun 2 | 2 . . . Ballistic Cannon . | . . . . Launcher . | . . . . Special Weapon . | . . . . Impact Weapon 4 | . 1 2 1 Slashing Weapon . | . . . . Piercing Weapon . | . . . . Special Melee Weapon 1 | . . 1 . Unidentified Prototypes 1 | . . 1 . Corrupted Parts 1 | . . 1 . System Corruption 1 | . . 1 . Parts Lost 11 | . 3 3 5 Power 1 | . . 1 . Propulsion 3 | . 2 . 1 Utility 3 | . . 2 1 Weapon 4 | . 1 . 3 Highest Loss Streak 5 | . 2 2 5 To Critical Strikes . | . . . . Average Slot Usage (%) 90 | . 87 97 86 Engine 6 | . 7 2 7 Core 3 | . 2 6 . Wheel 22 | . 24 22 18 Flight 1 | . . . 5 Device 19 | . 20 27 8 Processor 13 | . 4 14 32 Energy Gun 10 | . 6 13 13 Ballistic Gun 7 | . 16 . . Impact Weapon 3 | . 3 4 1 Special Melee Weapon 1 | . . 3 . Naked Turns . | . . . . Heaviest Build 24 | 9 13 24 14 Greatest Support 24 | 20 24 24 24 Greatest Overweight (x) 4 | . 2 4 . Average Overweight (x) . | . . . . Largest Inventory Capacity 5 | 5 5 5 5 Average Capacity 5 | 5 5 5 5 Most Carried 5 | 5 5 5 5 Average Carried 4 | 2 4 4 4 Final Capacity 5 | 5 5 5 5 Final Carried 5 | 3 5 5 3 Class Distribution -------------------- 63% | Mutant 19% | Assassin 17% | Skirmisher Dominant Class ---------------- Mutant | -10/Materials Assassin | -9/Materials Skirmisher | -8/Materials Resources | -11 -10 -9 -8 ----------- Run | Yrd Mat Mat Mat Matter Collected 713 | 332 221 115 45 Remotely . | . . . . Salvage Created 918 | 108 230 404 176 Parts 58 | 12 11 28 7 Haulers Intercepted 1 | . . 1 . Recyclers Shooed . | . . . . Parts Field Recycled . | . . . . Retrieved Matter . | . . . . Parts Self-Destructed . | . . . . Prevented . | . . . . Kills | -11 -10 -9 -8 ------- Run | Yrd Mat Mat Mat Combat Hostiles Destroyed 16 | 1 5 7 3 Melee 3 | . 2 . 1 Guns 9 | 1 3 4 1 Cannons 1 | . . 1 . Classes Destroyed 10 | 2 1 5 2 Worker 2 | . . 1 1 Tunneler 3 | 3 . . . Hauler 1 | . . 1 . Recycler 2 | . . 2 . Operator 1 | . . 1 . Watcher 4 | . 1 3 . Swarmer 6 | . . 6 . Grunt 8 | 1 5 1 1 Brawler 1 | . . . 1 Hunter 1 | . . . 1 Best Kill Streak 5 | 4 3 5 3 Combat Bots Only 3 | 1 2 3 2 Max Kills in Single Turn 2 | 1 1 2 1 Gunslinging 1 | . . 1 . Exploded . | . . . . Melee 1 | . 1 . 1 Uniques/NPCs Destroyed . | . . . . Combat | -11 -10 -9 -8 -------- Run | Yrd Mat Mat Mat Hostile Shots Fired 165 | 1 52 66 46 Missed 50 | 1 15 17 17 Damage Taken 1295 | . 468 381 446 Core 306 | . 121 77 108 Absorbed by Shields . | . . . . Ignored by Resistances 20 | . . 20 . Regen/Repaired (Parts) 19 | . . 19 . Core Remaining (%) 77 | 100 51 80 . Volleys Fired 54 | 7 17 24 6 Largest 2 | 2 2 2 2 Hottest 90 | 40 90 90 90 Shots Fired 95 | 14 34 35 12 Gun 95 | 14 34 35 12 Cannon . | . . . . Launcher . | . . . . Special . | . . . . Kinetic 46 | 14 32 . . Thermal . | . . . . Explosive . | . . . . Electromagnetic 49 | . 2 35 12 Robot Hit Streak 6 | 5 6 6 4 Robot Miss Streak 9 | 1 3 9 4 Penetration Max . | . . . . Secondary Targets 1 | . . 1 . Max Gunslinging Chain 1 | . . 1 . Shots Hit Robots 81 | 9 22 35 15 Core Hits 36 | 4 11 16 5 Critical Kills 1 | . 1 . . Critical Parts Destroyed 2 | . . 2 . Critical Strikes 3 | . 1 2 . Smash 3 | . 1 2 . Melee Attacks 26 | . 3 16 7 Impact 18 | . 3 8 7 Slashing . | . . . . Piercing . | . . . . Sneak Attacks 6 | . . 5 1 Combat Hostiles . | . . . . Follow-up Attacks 1 | . . 1 . Damage Inflicted 1543 | 115 365 627 436 Guns 886 | 115 250 373 148 Cannons . | . . . . Explosions . | . . . . Melee 657 | . 115 254 288 Ramming . | . . . . Kinetic 336 | 115 221 . . Thermal . | . . . . Explosive . | . . . . Electromagnetic 550 | . 29 373 148 Impact 657 | . 115 254 288 Slashing . | . . . . Piercing . | . . . . Highest Corruption 1 | . . 1 . Average Corruption 1 | . . 1 . Corruption Purged . | . . . . Corruption Blocked . | . . . . Overload Shots . | . . . . Overflow Damage 279 | . . 223 56 Projectiles 79 | . . 79 . Explosions . | . . . . Melee 200 | . . 144 56 Knockbacks 6 | . 1 2 3 Impact 5 | . 1 1 3 Kinetic . | . . . . Secondary 1 | . . 1 . Self-Inflicted Damage . | . . . . Shots . | . . . . Rammed . | . . . . Targets Rammed . | . . . . Kicked . | . . . . Crushed . | . . . . Highest Temperature 205 | . 36 205 69 Average Temperature 40 | . 12 52 22 Received Heat Transfer 540 | . 282 15 243 Siege Activations . | . . . . Robots Corrupted 1 | . . 1 . Combat Hostiles 1 | . . 1 . Parts Fried 8 | . . 5 3 Impact Corruptions 11 | . . 8 3 Robots Melted . | . . . . Combat Hostiles . | . . . . Parts Melted . | . . . . Heat Transferred . | . . . . Parts Sabotaged . | . . . . Parts Stolen . | . . . . Parts Stripped . | . . . . Power Chain Reactions . | . . . . Alert | -11 -10 -9 -8 ------- Run | Yrd Mat Mat Mat Peak Influence 307 | 36 127 307 291 Initial 129 | . 23 39 129 Average 110 | 12 67 160 175 Maximum Alert Level 1 | . . 1 1 Low Security (%) 85 | 100 100 68 73 Level 1 14 | . . 31 26 Level 2 . | . . . . Level 3 . | . . . . Level 4 . | . . . . Level 5 . | . . . . High Security . | . . . . Max Security . | . . . . Squads Dispatched 5 | . 3 1 1 Investigation 2 | . 2 . . Extermination . | . . . . Reinforcement 3 | . 1 1 1 Assault . | . . . . Garrison . | . . . . Intercept . | . . . . Searches Triggered . | . . . . Construction Impeded . | . . . . Haulers Reinforced . | . . . . Active Scanning Responses . | . . . . Cargo Convoy Interrupts . | . . . . Stealth | -11 -10 -9 -8 --------- Run | Yrd Mat Mat Mat Distress Signals 2 | . . 1 1 Communications Jammed . | . . . . Distress Signals . | . . . . Times Spotted 60 | 1 28 17 14 Peak Tracking Total 8 | 1 6 7 8 Tactical Retreats 12 | . 6 3 3 Traps | -11 -10 -9 -8 ------- Run | Yrd Mat Mat Mat Traps Triggered 1 | . 1 . . Indirectly . | . . . . Trap Hack Attempts . | . . . . Triggered . | . . . . Disarmed . | . . . . Reprogrammed . | . . . . Reused . | . . . . Traps Extracted . | . . . . Installed . | . . . . Triggered . | . . . . Machines | -11 -10 -9 -8 ---------- Run | Yrd Mat Mat Mat Machines Disabled 1 | . 1 . . Max in Single Turn 1 | . 1 . . Machines Repaired . | . . . . Machines Dismantled . | . . . . Machines Sabotaged . | . . . . Overloaded Fab Kills . | . . . . Hacking | -11 -10 -9 -8 --------- Run | Yrd Mat Mat Mat Machines Accessed 6 | . 2 2 2 Terminals 4 | . 2 1 1 Fabricators . | . . . . Repair Stations 1 | . . 1 . Recycling Units . | . . . . Scanalyzers 1 | . . . 1 Garrison Access . | . . . . Total Hacks 24 | . 9 7 8 Successful 17 | . 6 6 5 Failed 7 | . 3 1 3 Catastrophic 1 | . 1 . . Database Lockouts . | . . . . Manual 6 | . 4 2 . Terminals 18 | . 9 5 4 Fabricators . | . . . . Repair Stations 2 | . . 2 . Recycling Units . | . . . . Scanalyzers 4 | . . . 4 Garrison Access . | . . . . Terminal Hacks 11 | . 6 4 1 Record 6 | . 3 3 . Prototype ID Bank 2 | . 1 1 . Emergency Access Points 1 | . 1 . . Locate Traps 1 | . 1 . . Patrol Status 1 | . . . 1 Fabricator Hacks . | . . . . Repair Station Hacks 2 | . . 2 . Scan Component 1 | . . 1 . Repair 1 | . . 1 . Recycling Unit Hacks . | . . . . Scanalyzer 4 | . . . 4 Insert Component 2 | . . . 2 Analyze 2 | . . . 2 Garrison Access Hacks . | . . . . Unauthorized Hacks . | . . . . Terminals . | . . . . Fabricators . | . . . . Repair Stations . | . . . . Recycling Units . | . . . . Scanalyzers . | . . . . Garrison Access . | . . . . Data Cores Recovered . | . . . . Used . | . . . . Hacking Detections 6 | . 2 2 2 Full Trace Events 4 | . 2 1 1 Feedback Events . | . . . . Feedback Blocked . | . . . . Robot Schematics Acquired . | . . . . Robots Built . | . . . . Authchips . | . . . . Time . | . . . . Total Robot Build Rating . | . . . . Part Schematics Acquired 2 | . . . 2 Parts Built . | . . . . Authchips . | . . . . Time . | . . . . Total Part Build Rating . | . . . . Parts Repaired 1 | . . 1 . Time 26 | . . 26 . Parts Recycled . | . . . . Recycled Matter . | . . . . Retrieved Matter . | . . . . Retrieved Components . | . . . . Parts Scanalyzed 2 | . . . 2 Part Schematics Acquired 2 | . . . 2 Parts Damaged 1 | . . . 1 Bothacking | -11 -10 -9 -8 ------------ Run | Yrd Mat Mat Mat Used RIF Installer . | . . . . Robots Hacked 2 | . . 2 . Non-combat 2 | . . 2 . Combat . | . . . . Robot Hacks Applied 3 | . . 3 . parse_system 2 | . . 2 . no_distress 1 | . . 1 . Relay Couplers Released . | . . . . Fabnet Peak Effective % . | . . . . Robots Rewired . | . . . . Allies Hacked . | . . . . Hacks Repelled . | . . . . Allies | -11 -10 -9 -8 -------- Run | Yrd Mat Mat Mat Total Allies . | . . . . Largest Group . | . . . . Highest-Rated Group . | . . . . Highest-Rated Ally . | . . . . Total Orders . | . . . . Ally Attacks . | . . . . Total Damage . | . . . . Kills . | . . . . Allies Corrupted . | . . . . Allies Melted . | . . . . Intel | -11 -10 -9 -8 ------- Run | Yrd Mat Mat Mat Robot Analysis Total . | . . . . Derelict Logs Recovered . | . . . . Drone Launches . | . . . . Drone Recoveries . | . . . . Exploration | -11 -10 -9 -8 ------------- Run | Yrd Mat Mat Mat Turns Passed 1377 | 120 599 371 287 Spaces Moved 1061 | 105 418 257 281 Core 49 | 15 31 3 . Treads . | . . . . Legs 4 | 4 . . . Wheels 947 | 86 387 254 220 Hover . | . . . . Flight 61 | . . . 61 Fastest Speed 45 | 50 50 90 45 Average Speed 84 | 77 85 91 80 Slowest Speed 250 | 120 150 250 90 Overloaded Moves . | . . . . Propulsion Burnouts . | . . . . Robots Hopped 4 | . . . 4 Cave-ins Triggered . | . . . . Exploration Rate (%) 30 | 8 67 24 22 Regions Visited 3 Branch Regions . Pre-discovered Areas . | . . . . Known Exits Taken . | . . . . Unknown Exits Taken 3 | 1 1 1 . Scrap Searched . | . . . . Spaces Dug . | . . . . Terrain Destroyed . | . . . . Melee . | . . . . Projectile . | . . . . AOE . | . . . . Terrain Rammed . | . . . . Walls Destroyed . | . . . . Machines Disabled . | . . . . Actions | -11 -10 -9 -8 --------- Run | Yrd Mat Mat Mat Total 1398 | 127 619 336 316 Wait 184 | . 151 18 15 Move 1050 | 104 417 256 273 Hop 4 | . . . 4 Pick Up 14 | 3 6 4 1 Fast Attach 25 | 9 8 5 3 Attach 8 | . . 5 3 Detach 8 | 2 2 2 2 Swap 10 | . 6 4 . Drop 16 | 2 9 3 2 Fire 54 | 7 17 24 6 Melee 25 | . 3 15 7 Ram . | . . . . Kick . | . . . . Crush . | . . . . Escape Stasis . | . . . . Rewire . | . . . . Trap . | . . . . Miscellaneous . | . . . . Route ------- -11/Scrapyard -10/Materials (discovered 2 exits: *Mat / [*Min]) -9/Materials -8/Materials History --------- Turn | Location | Event 2 | -11/Scrapyard | Met Revision 17 67 | -11/Scrapyard | Discovered new exit (range 8) 121 | -11/Scrapyard | Entered Materials 316 | -10/Materials | Build established: Mutant 396 | -10/Materials | Discovered new exit (range 16) 515 | -10/Materials | Discovered new exit (range 16) 720 | -10/Materials | Entered another Materials area 720 | -9/Materials | Evolved 2 slots: Utility x2 1038 | -9/Materials | Repaired ECM Suite 1067 | -9/Materials | Discovered new exit (range 16) 1091 | -9/Materials | Entered another Materials area 1091 | -8/Materials | Evolved 2 slots: Propulsion x1, Utility x1 1339 | -8/Materials | Lost 5 parts (1n1u3w) 1378 | -8/Materials | Self-destructed Last Messages --------------- Imp. Terrain Scanner destroyed. Cesium-ion Thruster destroyed. Imp. EM Shotgun destroyed. Sneak attack on K-01 Serf. Destroyed Wheel. Destroyed Lgt. Ion Engine. K-01 Serf system corrupted by crushing effect. K-01 Serf knocked back. K-01 Serf system terminally corrupted. Wheel fried. G-47 Trooper knocked back. B-36 Bruiser destroyed. Acquired 45 matter. Destroyed Imp. Heat Sink. G-47 Trooper system corrupted by crushing effect. G-47 Trooper knocked back. G-47 Trooper system terminally corrupted. Particle Gun fried. K-01 Serf collects debris. K-01 Serf destroyed. Map ----- +----------------------------------------------------+ | ???????????????????????????????????????? ?#???"??? | | ????????????????????????????????????????"?? ? ?? ? | | ???????????????????????????????????????""?# ????#? | | ????????????????????????????????????????? ???#### | | ???????????????????a????????????????? ????# | | ??????????????????????????????????????? ??# | | ??????????????????????????????????????????# | | ??????????????????????????????????????????# | | ??????????????????????????????????????????#+# | | ???????????????????????????????????????? ?? + | | ????????????????????????????????????????? # | | ?????????????????????#?????????????????? ?# = | | ?????????????????????# ?????????????????????# | | ?????????????????##### ?????????????????????# | | ?????????????????#== ???? ######??????????# | | ?????????????????#== ??# ! #?????#### | | ??????????????????** ?# +????? | | ???????????????????* ?# """ """ ######## | | ???????????????????? ?# """ """ # ] # | | ????????????????????? ?# """ """ # *# | | ?????????????????????# # #?""" # | | ?????????????????????# # #?""" # " | | ?????????????????????# # ! #??"" ?# [ T | | ?????????????????????+ #####+#####?? ?# ! " | | ?????????????????????# t #######+### * | | ?????????????????????+ @ g = | | ?????????????????????# ############"##### | | ?????????????????????##### #???????# #???? | | ?????????????????????????# #???????# #???? | | ?????????????????????????#! !#???????# a #?#?# | | ?????????????????????????##!!!!##???????# #?##? | | ??????????????????????????######????????# ##??? | | ????????????????????????????????????????# #???? | | ????????????????????????????????????????# #???? | | ????????????????????????????????????????# #?"?? | | ????????????????????????????????????????# #???" | | ????????????????????????????????????????######???" | | ?????????????????????????????????????????????????? | | ?????????????????????????????????????????????????? | | ?????????????????????????????????????????????????? | | ?????????????????????????????????????????????????? | | ???????????????a???????a?????????????????????????? | | ?????????????????????????????????????????????????? | | ?????????????????????????????????????????????????? | | ?????????????????????????????????????????????????? | | ?????????????????????????????????????????????????? | | ?????????????????????????????????????????????????? | | ?????????????????????????????????????????????????? | | ?????????????????????????????????????????????????? | | ?????????????????????????????????????????????????? | +----------------------------------------------------+ Best States ------------- Heat Dissipation 31 Energy Generation 14 Energy Capacity 250 Matter Stores 300 Matter Capacity 300 Sight Range 16 Robot Scan Range 14 Terrain Scan Range 16 Terrain Scan Density 185 ECM Strength 1 Armor Coverage 150 Resistance: KI 20 Evasion (%) 61 Melee Accuracy 5 Item Schematics ----------------- Weight Redist. System | -8/Materials | Scanalyzed VTOL Module | -8/Materials | Scanalyzed Robot Schematics ------------------ None Fabricated ------------ Nothing Alien Tech Used ----------------- None Achievements -------------- Omniscient Cartographer Part-time Mechanic Power Corrupts Storm Trooper Challenges ------------ None Game ------ Seed DispersionTacticalBoomstick Manual? 0 Play Time 00:51:36 Cumulative 5.2 hours Start 2024.04.02 @ 15:37:05 End 2024.04.04 @ 21:34:01 Sessions 3 Manual Loads 0 Difficulty Rogue Special Mode None Game No. 2 Rogue 2 Adventurer 0 Explorer 0 Win Type - Total 0 Types 0/0/0/0/0/0/0/0/0 Lore% 1 Gallery% 5 Achievement% 5 Wizard Run 0 Options --------- Layout 1 ASCII 0 Keyboard 1 Movement Numpad Keybinds 0 Fullscreen 1 Font 32/SmallcapsGlow Map View 77x35 Zoom Use 0% Tactical HUD 0 Map Filters NONE Filters NONE Steam 1 RUN: e1d81e44-13da-46a5-a70c-e07a13d244da